bitfinex/quotes_SOLUSD_20220117
["timestamp","ask_amount","ask_price","bid_price","bid_amount"]
[1642413085074,1.38348583,143.75,143.7,72.04681429]
[1642413088778,1.38348583,143.75,143.71,0.25]
[1642413091382,1.38348583,143.75,143.7,72.04681429]
[1642413091783,1.38348583,143.75,143.71,0.25]
[1642413092085,1.38348583,143.75,143.7,72.04681429]
[1642413092887,1.38348583,143.75,143.71,0.25]
[1642413094487,1.38348583,143.75,143.7,72.04681429]
[1642413095589,1.38348583,143.75,143.71,0.25]
[1642413100494,1.98465939,143.79,143.71,10.37]
[1642413100696,1.98465939,143.79,143.72,24.4752]
[1642413100893,1.98465939,143.79,143.73,10.37]
[1642413101093,1.98465939,143.79,143.74,22.8279]
[1642413101297,1.98465939,143.79,143.75,44.8519699]
[1642413101496,1.98465939,143.81,143.75,44.8519699]
[1642413101794,7.98465939,143.81,143.75,44.8519699]
[1642413101993,1.98465939,143.81,143.75,44.6019699]
[1642413102194,7.98465939,143.81,143.75,44.6019699]
[1642413102396,1.98465939,143.81,143.75,44.6019699]
[1642413102693,7.98465939,143.81,143.75,44.6019699]
[1642413102893,1.98465939,143.81,143.75,44.6019699]
[1642413103094,7.98465939,143.81,143.75,44.6019699]
[1642413103893,6.0,143.81,143.75,44.6019699]
[1642413104292,6.0,143.81,143.76,0.25]
[1642413104496,1.98465939,143.81,143.75,44.6019699]
[1642413104694,7.98465939,143.81,143.76,0.25]
[1642413104892,1.98465939,143.81,143.76,0.25]
[1642413105095,7.98465939,143.81,143.76,24.6605]
[1642413105493,6.0,143.81,143.76,24.6605]
[1642413105893,1.98465939,143.82,143.76,24.6605]
[1642413107897,0.25,143.81,143.76,24.4105]
[1642413110202,0.25,143.82,143.76,24.4105]
[1642413114612,36.42270353,143.82,143.76,24.4105]
[1642413115206,0.25,143.82,143.76,24.4105]
[1642413119309,7.98465939,143.83,143.77,0.25]
[1642413120815,0.25,143.82,143.76,24.4105]
[1642413121813,0.25,143.83,143.76,24.4105]
[1642413122015,0.25,143.83,143.77,0.25]
[1642413122212,3.25260062,143.84,143.77,0.25]
[1642413122712,1.26794123,143.84,143.77,0.25]
[1642413123513,1.26794123,143.84,143.76,34.8411]
[1642413123914,0.25,143.83,143.76,24.4105]
[1642413124615,1.26794123,143.84,143.76,24.4105]
[1642413124817,0.25,143.83,143.77,0.25]
[1642413125016,36.66803916,143.83,143.76,24.4105]
[1642413126015,0.25,143.83,143.76,24.4105]
[1642413126220,1.26794123,143.84,143.77,0.25]
[1642413126415,1.26794123,143.84,143.77,18.036]
[1642413126616,1.98465939,143.84,143.77,18.036]
[1642413126815,1.98465939,143.84,143.79,44.52020289]
[1642413127817,1.98465939,143.85,143.79,44.52020289]
[1642413128417,0.25,143.84,143.79,44.52020289]
[1642413129118,0.25,143.84,143.79,54.64020289]
[1642413129318,6.25,143.85,143.79,54.64020289]
[1642413129519,0.25,143.85,143.79,54.64020289]
[1642413129820,2.23465939,143.85,143.79,54.64020289]
[1642413133223,8.23465939,143.85,143.79,54.64020289]
[1642413133525,46.48919773,143.85,143.79,54.64020289]
[1642413135422,8.23465939,143.85,143.79,54.64020289]
[1642413136524,8.23465939,143.85,143.79,10.12]
[1642413139128,24.50313009,143.89,143.79,10.12]
[1642413139129,5.45097948,143.91,143.82,69.59]
[1642413139326,5.45097948,143.91,143.83,10.37]
[1642413139928,14.38861378,143.93,143.83,10.12]
[1642413140226,36.24736218,143.91,143.83,10.12]
[1642413140626,0.25,143.9,143.83,10.12]
[1642413144835,0.25,143.9,143.79,24.7246]
[1642413145045,23.9212,143.9,143.79,34.8446]
[1642413145237,23.9212,143.9,143.79,10.12]
[1642413146038,34.3519,143.9,143.79,10.12]
[1642413146870,34.3519,143.9,143.79,34.5971]
[1642413147269,69.59,143.89,143.79,34.5971]
[1642413147470,106.33910849,143.88,143.79,34.5971]
[1642413147671,106.58910849,143.88,143.79,34.5971]
[1642413149074,53.43110849,143.88,143.79,34.5971]
[1642413149271,42.99910849,143.88,143.79,34.5971]
[1642413151775,42.99910849,143.88,143.8,0.25]
[1642413151978,42.99910849,143.88,143.8,10.12]
[1642413152175,42.99910849,143.88,143.81,34.79093604]
[1642413152375,42.99910849,143.88,143.8,10.12]
[1642413153376,69.59,143.87,143.8,52.69040329]
[1642413153774,0.25,143.86,143.8,10.12]
[1642413155678,36.74910849,143.88,143.8,10.12]
[1642413155976,36.74910849,143.88,143.81,23.4524]
[1642413156177,36.74910849,143.88,143.82,10.12]
[1642413156377,0.25,143.87,143.82,10.12]
[1642413158479,36.74910849,143.88,143.82,10.12]
[1642413159382,11.65721525,143.92,143.83,38.1585493]
[1642413159579,0.25,143.87,143.83,48.2785493]
[1642413159778,0.25,143.87,143.83,10.12]
[1642413160281,9.92088033,144.02,143.87,0.21399376]
[1642413160481,15.73371578,144.07,143.93,126.56]
[1642413160684,44.72315123,144.06,143.95,38.28635238]
[1642413160883,44.72315123,144.06,143.96,10.37]
[1642413161281,46.46219548,144.06,143.96,10.12]
[1642413161482,69.59,144.04,143.97,10.12]
[1642413161680,69.59,144.04,143.95,8.60992163]
[1642413161883,1.73904425,144.03,143.95,8.60992163]
[1642413162082,38.3742858,144.02,143.95,8.60992163]
[1642413162482,38.3742858,144.02,143.94,3.62773742]
[1642413162683,109.70333005,144.02,143.94,0.33404808]
[1642413162883,109.70333005,144.02,143.9,10.12]
[1642413163083,24.5542,144.01,143.9,10.12]
[1642413163283,69.59,144.0,143.86,10.12]
[1642413163481,37.45455001,143.98,143.87,23.7508]
[1642413163881,0.25,143.97,143.87,23.7508]
[1642413164083,1.98904425,143.97,143.87,23.7508]
[1642413164282,12.16384425,143.96,143.88,0.25]
[1642413164681,38.6242858,143.95,143.88,0.25]
[1642413164882,38.6242858,143.95,143.87,23.7508]
[1642413165482,40.36333005,143.95,143.87,23.7508]
[1642413165682,50.78853005,143.95,143.87,23.7508]
[1642413167089,120.37853005,143.95,143.83,32.6925]
[1642413167285,130.49853005,143.95,143.83,22.5725]
[1642413169090,130.49853005,143.95,143.8,34.1823]
[1642413169287,22.582,143.94,143.81,0.25]
[1642413169489,10.4287,143.91,143.81,0.25]
[1642413169691,37.45455001,143.9,143.8,47.6672]
[1642413169889,39.44359426,143.9,143.8,47.6672]
[1642413171306,12.16874425,143.89,143.8,47.6672]
[1642413171495,12.16874425,143.89,143.76,10.12]
[1642413171695,1.98904425,143.88,143.74,57.4736]
[1642413171895,71.57904425,143.88,143.74,63.4736]
[1642413172097,71.57904425,143.88,143.74,57.4736]
[1642413172098,69.59,143.86,143.74,57.4736]
[1642413172299,69.59,143.84,143.74,57.4736]
[1642413172725,1.98904425,143.83,143.74,57.4736]
[1642413172924,1.98904425,143.83,143.74,47.3536]
[1642413173123,37.45455001,143.81,143.74,47.3536]
[1642413173323,0.25,143.8,143.74,47.3536]
[1642413173525,0.25,143.8,143.7,34.9385]
[1642413173825,1.73904425,143.79,143.7,24.8185]
[1642413174223,1.73904425,143.79,143.68,115.8535]
[1642413174224,0.25,143.78,143.68,115.8535]
[1642413174423,0.25,143.78,143.68,162.94368513]
[1642413174424,38.6242858,143.78,143.68,162.94368513]
[1642413175024,38.6242858,143.78,143.68,93.35368513]
[1642413175425,49.0614858,143.78,143.68,99.35368513]
[1642413176339,49.0614858,143.78,143.68,179.06368513]
[1642413177138,49.0614858,143.78,143.69,0.25]
[1642413177732,38.6242858,143.78,143.69,0.25]
[1642413179438,38.6242858,143.78,143.69,10.6857]
[1642413179938,38.6242858,143.78,143.69,16.6857]
[1642413180637,49.0611858,143.78,143.69,6.25]
[1642413180837,49.0611858,143.78,143.69,0.25]
[1642413182741,38.6242858,143.78,143.69,0.25]
[1642413183440,10.4358,143.8,143.69,0.25]
[1642413183639,24.2093,143.81,143.69,20.8058]
[1642413183839,24.2093,143.81,143.7,94.3949]
[1642413184138,10.4342,143.82,143.7,94.3949]
[1642413184338,10.4342,143.82,143.71,10.37]
[1642413184537,10.4342,143.82,143.71,50.99029467]
[1642413184538,53.62008692,143.82,143.71,50.99029467]
[1642413185342,0.25,143.81,143.71,50.99029467]
[1642413185539,10.685,143.81,143.71,10.37]
[1642413185740,10.685,143.81,143.7,24.8049]
[1642413185940,22.54404425,143.81,143.7,24.8049]
[1642413186541,22.54404425,143.81,143.71,41.20884024]
[1642413187141,22.29404425,143.81,143.71,41.20884024]
[1642413188543,0.25,143.8,143.71,41.20884024]
[1642413188744,10.4368,143.79,143.7,24.8049]
[1642413189144,0.25,143.78,143.7,24.8049]
[1642413189345,0.25,143.8,143.7,24.8049]
[1642413189945,0.25,143.8,143.7,64.85418336]
[1642413190544,10.4373,143.78,143.7,64.85418336]
[1642413190744,0.25,143.77,143.7,64.85418336]
[1642413190943,0.25,143.77,143.7,24.8049]
[1642413191946,0.25,143.78,143.71,43.66652482]
[1642413192347,10.37,143.83,143.72,23.6996]
[1642413192747,0.25,143.83,143.72,23.6996]
[1642413193049,45.68438016,143.83,143.72,23.6996]
[1642413193547,56.11858016,143.83,143.72,23.6996]
[1642413195050,56.11858016,143.83,143.72,34.1332]
[1642413196250,56.11858016,143.83,143.72,44.2532]
[1642413203161,56.11858016,143.83,143.72,33.8196]
[1642413205769,57.85762441,143.83,143.72,33.5696]
[1642413208600,56.11858016,143.83,143.72,33.5696]
[1642413209397,56.11858016,143.83,143.73,0.25]
[1642413209596,56.11858016,143.83,143.72,33.5696]
[1642413210800,56.11858016,143.83,143.73,0.25]
[1642413212902,56.11858016,143.83,143.72,33.5696]
[1642413213706,22.6553,143.82,143.72,33.5696]
[1642413213902,33.0906,143.82,143.72,33.5696]
[1642413214101,0.25,143.81,143.72,33.5696]
[1642413214801,0.25,143.81,143.73,0.25]
[1642413219406,0.25,143.81,143.73,69.84]
[1642413219606,0.25,143.82,143.74,61.21024284]
[1642413219806,0.25,143.84,143.75,0.25]
[1642413220008,10.12,143.86,143.75,0.25]
[1642413220207,22.9762,143.88,143.75,10.37]
[1642413220405,1.42607486,143.87,143.76,22.7891]
[1642413220607,49.09942511,143.87,143.77,42.15147536]
[1642413221207,49.09942511,143.87,143.78,22.8464]
[1642413221409,0.25,143.86,143.78,22.8464]
[1642413222110,0.25,143.86,143.79,0.25]
[1642413225712,0.25,143.86,143.8,34.85434296]
[1642413225913,0.25,143.86,143.8,59.03424296]
[1642413226119,1.42607486,143.87,143.81,0.25]
[1642413226712,33.9118,143.92,143.81,10.6771]
[1642413226914,38.45979902,143.93,143.82,24.9651]
[1642413227214,38.45979902,143.93,143.83,46.3114643]
[1642413227414,38.45979902,143.93,143.83,46.5614643]
[1642413227914,38.45979902,143.93,143.84,34.8559]
[1642413228314,0.25,143.92,143.85,0.25]
[1642413229515,0.25,143.92,143.84,24.4311]
[1642413229916,0.25,143.92,143.81,24.6822]
[1642413230716,25.1557,143.92,143.81,24.6822]
[1642413231117,94.7457,143.92,143.81,24.6822]
[1642413231319,94.7457,143.92,143.78,34.8304]
[1642413231518,115.2934,143.92,143.78,45.2596]
[1642413231819,115.2934,143.92,143.78,88.83006917]
[1642413232422,115.2934,143.92,143.78,78.40086917]
[1642413232649,115.2934,143.92,143.78,34.8304]
[1642413234045,115.0434,143.92,143.78,34.8304]
[1642413234246,115.0434,143.92,143.79,0.25]
[1642413235347,0.25,143.91,143.79,0.25]
[1642413235547,10.4304,143.88,143.79,0.25]
[1642413235747,37.61903679,143.87,143.79,0.25]
[1642413236547,0.25,143.87,143.79,0.25]
[1642413237349,1.98904425,143.89,143.79,0.25]
[1642413237552,5.61906182,143.89,143.79,0.25]
[1642413237751,51.7060034,143.89,143.79,0.25]
[1642413239152,51.7060034,143.89,143.78,35.1396]
[1642413239354,75.8025034,143.89,143.79,0.25]
[1642413239554,75.5525034,143.89,143.79,0.25]
[1642413239752,75.5525034,143.89,143.78,45.2596]
[1642413240152,75.5525034,143.89,143.79,0.25]
[1642413240754,0.25,143.88,143.78,45.2596]
[1642413241156,1.98904425,143.88,143.78,45.2596]
[1642413242554,27.01751422,143.93,143.79,10.6784]
[1642413242555,12.16764425,143.91,143.79,10.6784]
[1642413242756,10.4286,143.91,143.8,33.513]
[1642413242959,3.62964481,143.92,143.81,69.59]
[1642413243162,28.75655847,143.93,143.82,10.12]
[1642413243457,28.43767,143.93,143.83,23.2434]
[1642413243660,42.74263383,143.92,143.83,65.08506276]
[1642413243857,42.74263383,143.92,143.83,64.83506276]
[1642413244057,44.48167808,143.92,143.83,64.83506276]
[1642413245358,0.25,143.91,143.83,64.83506276]
[1642413248362,0.25,143.91,143.84,0.25]
[1642413248962,0.25,143.91,143.83,64.83506276]
[1642413250163,42.74263383,143.92,143.83,64.83506276]
[1642413250365,42.74263383,143.92,143.84,0.25]
[1642413251265,39.69365847,143.95,143.84,0.25]
[1642413251563,25.31974425,143.95,143.84,10.6748]
[1642413252165,25.31974425,143.95,143.85,22.8919]
[1642413252468,37.67657915,143.94,143.85,22.8919]
[1642413252663,48.10297915,143.94,143.85,22.8919]
[1642413252864,1.73904425,143.93,143.85,22.8919]
[1642413253265,0.25,143.92,143.81,10.12]
[1642413253463,0.25,143.92,143.82,63.00540553]
[1642413253665,1.98904425,143.92,143.82,63.00540553]
[1642413253867,37.99718909,143.91,143.82,63.00540553]
[1642413254262,0.25,143.9,143.82,63.00540553]
[1642413254866,37.99718909,143.91,143.83,0.25]
[1642413255067,0.25,143.9,143.83,10.37]
[1642413256170,0.25,143.91,143.83,10.37]
[1642413256367,0.25,143.91,143.83,10.12]
[1642413257068,40.4413369,143.91,143.83,10.12]
[1642413257469,42.18038115,143.91,143.83,10.12]
[1642413258872,40.4413369,143.91,143.83,10.12]
[1642413260777,40.4413369,143.91,143.82,63.00540553]
[1642413261076,40.4413369,143.91,143.83,0.25]
[1642413261477,42.42123914,143.91,143.83,0.25]
[1642413269116,2.22990224,143.91,143.83,0.25]
[1642413270113,44.61694092,143.91,143.83,0.25]
[1642413271417,1.97990224,143.9,143.83,0.25]
[1642413272416,44.61694092,143.91,143.83,0.25]
[1642413272615,44.61694092,143.91,143.82,63.00540553]
[1642413273716,1.97990224,143.9,143.82,63.00540553]
[1642413274115,0.25,143.89,143.82,63.00540553]
[1642413277221,0.25,143.89,143.83,0.25]
[1642413277427,1.97990224,143.9,143.83,0.25]
[1642413277621,1.97990224,143.89,143.83,0.25]
[1642413278526,1.97990224,143.9,143.83,0.25]
[1642413278924,0.25,143.89,143.83,0.25]
[1642413279125,0.25,143.89,143.82,63.00540553]
[1642413280226,2.22990224,143.89,143.82,63.00540553]
[1642413281427,33.44179713,143.88,143.82,63.00540553]
[1642413281828,0.25,143.87,143.82,63.00540553]
[1642413282529,0.25,143.87,143.82,24.5494]
[1642413284433,25.07930224,143.9,143.82,24.5494]
[1642413284831,0.25,143.89,143.82,24.5494]
[1642413285535,0.25,143.89,143.83,38.18659913]
[1642413292779,0.25,143.9,143.83,38.18659913]
[1642413292982,0.25,143.9,143.84,24.6758]
[1642413296885,1.97990224,143.91,143.84,24.6758]
[1642413297285,0.25,143.9,143.84,24.6758]
[1642413298390,2.22990224,143.91,143.84,24.6758]
[1642413299985,0.25,143.91,143.84,24.6758]
[1642413303090,0.25,143.91,143.81,12.35833395]
[1642413303292,12.65830224,143.91,143.82,24.2722]
[1642413305494,1.97990224,143.9,143.82,24.2722]
[1642413305898,0.25,143.89,143.82,24.2722]
[1642413306795,24.77050224,143.9,143.83,0.25]
[1642413307001,24.77050224,143.9,143.82,24.2722]
[1642413307295,0.25,143.89,143.82,24.2722]
[1642413307898,0.22,143.89,143.82,24.2722]
[1642413310901,30.61772435,143.89,143.82,24.2722]
[1642413312698,30.61772435,143.89,143.79,1.93123395]
[1642413312699,32.3567686,143.89,143.79,1.93123395]
[1642413312900,10.12,143.88,143.79,1.93123395]
[1642413313099,10.433,143.86,143.79,1.93123395]
[1642413313301,0.25,143.85,143.79,1.93123395]
[1642413313500,0.25,143.85,143.78,36.14902172]
[1642413315099,10.12,143.86,143.78,36.14902172]
[1642413315700,0.25,143.85,143.78,36.14902172]
[1642413317501,0.25,143.85,143.75,26.37813395]
[1642413317702,0.25,143.85,143.75,36.80953395]
[1642413317905,0.25,143.85,143.75,26.37813395]
[1642413318302,24.9666,143.85,143.75,26.37813395]
[1642413318702,24.9666,143.85,143.76,45.44030127]
[1642413319105,0.25,143.85,143.76,45.44030127]
[1642413319306,1.97990224,143.87,143.77,0.25]
[1642413319503,24.51420224,143.87,143.77,24.8965]
[1642413320906,0.25,143.86,143.77,24.8965]
[1642413329240,32.9656,143.87,143.78,0.25]
[1642413329843,32.9656,143.87,143.77,24.8965]
[1642413330642,0.25,143.86,143.77,24.8965]
[1642413331047,0.25,143.86,143.78,0.25]
[1642413331243,32.9656,143.87,143.78,0.25]
[1642413331845,32.9656,143.87,143.77,24.8965]
[1642413332048,32.9656,143.87,143.78,0.25]
[1642413332646,0.25,143.86,143.78,0.25]
[1642413333547,0.25,143.86,143.77,24.8965]
[1642413333746,0.25,143.86,143.77,94.4865]
[1642413334564,0.25,143.86,143.77,24.8965]
[1642413339551,0.25,143.86,143.77,26.82773395]
[1642413340352,0.25,143.86,143.78,0.25]
[1642413342156,0.25,143.86,143.77,24.8965]
[1642413342758,2.22990224,143.86,143.77,24.8965]
[1642413343157,12.66190224,143.86,143.77,24.8965]
[1642413344459,45.43111146,143.84,143.77,24.8965]
[1642413344862,0.25,143.83,143.77,24.8965]
[1642413345761,0.25,143.83,143.76,45.44030127]
[1642413345959,0.25,143.83,143.74,1.93123395]
[1642413346162,0.25,143.83,143.74,24.65643395]
[1642413346961,0.25,143.83,143.75,45.48453294]
[1642413347160,10.6841,143.83,143.75,45.48453294]
[1642413347561,10.6841,143.83,143.76,24.5446]
[1642413354168,0.25,143.83,143.76,24.5446]
[1642413365176,10.6843,143.83,143.76,24.5446]
[1642413365776,1.5227723,143.8,143.71,24.99183395]
[1642413366177,10.6874,143.79,143.71,1.93123395]
[1642413366391,10.12,143.78,143.71,1.93123395]
[1642413366577,10.12,143.78,143.72,40.68103052]
[1642413366779,10.12,143.78,143.71,1.93123395]
[1642413366780,0.25,143.77,143.71,1.93123395]
[1642413366981,0.25,143.77,143.7,26.65043395]
[1642413367181,1.98904425,143.77,143.7,1.93123395]
[1642413367607,12.42764425,143.77,143.7,1.93123395]
[1642413367808,12.42764425,143.77,143.7,49.17080631]
[1642413368111,10.6886,143.77,143.7,47.23957236]
[1642413368708,0.25,143.77,143.7,47.23957236]
[1642413368909,1.5227723,143.8,143.71,0.25]
[1642413369112,3.50267454,143.8,143.71,24.5842]
[1642413370008,1.5227723,143.8,143.71,24.5842]
[1642413370210,0.25,143.79,143.71,24.5842]
[1642413370711,0.25,143.79,143.71,24.3342]
[1642413371910,1.5227723,143.8,143.71,24.3342]
[1642413373409,0.25,143.79,143.71,24.3342]
[1642413382518,29.01744757,143.78,143.71,24.3342]
[1642413382920,0.25,143.77,143.71,24.3342]
[1642413384321,0.25,143.78,143.71,24.3342]
[1642413388328,10.6879,143.78,143.71,24.3342]
[1642413388727,33.8573,143.78,143.71,24.3342]
[1642413390433,33.8573,143.78,143.68,1.93123395]
[1642413390635,52.72134425,143.78,143.68,1.93123395]
[1642413391836,52.72134425,143.78,143.67,24.98153395]
[1642413392933,54.70124649,143.78,143.67,23.0503]
[1642413393135,124.29124649,143.78,143.67,23.0503]
[1642413393935,3.63356711,143.77,143.67,23.0503]
[1642413394135,10.4405,143.74,143.67,23.0503]
[1642413394334,0.25,143.73,143.67,23.0503]
[1642413402276,10.4405,143.74,143.67,23.0503]
[1642413403580,0.25,143.73,143.64,1.93123395]
[1642413403776,10.4423,143.72,143.64,26.62423395]
[1642413404176,0.25,143.71,143.64,26.62423395]
[1642413404577,0.25,143.71,143.64,1.93123395]
[1642413404777,10.4435,143.7,143.64,1.93123395]
[1642413405076,37.12734425,143.7,143.62,1.93123395]
[1642413405278,0.25,143.69,143.62,1.93123395]
[1642413405678,0.25,143.69,143.63,47.48635344]
[1642413411186,0.25,143.69,143.61,23.1487]
[1642413411490,0.25,143.69,143.62,0.25]
[1642413411686,10.6943,143.69,143.62,0.25]
[1642413411887,0.25,143.68,143.62,0.25]
[1642413412287,0.25,143.68,143.62,48.46041993]
[1642413418692,0.25,143.68,143.62,48.21041993]
[1642413420195,0.25,143.7,143.62,48.21041993]
[1642413421399,10.6935,143.7,143.63,22.8945]
[1642413426706,0.25,143.7,143.63,22.8945]
[1642413430739,37.24340224,143.74,143.64,0.25]
[1642413430934,1.97990224,143.74,143.64,0.25]
[1642413431733,1.97990224,143.74,143.64,10.6892]
[1642413431936,46.57180224,143.76,143.65,0.15050508]
[1642413432238,46.57180224,143.76,143.65,23.54950508]
[1642413432836,46.57180224,143.76,143.66,0.25]
[1642413433036,46.57180224,143.76,143.65,23.54950508]
[1642413434038,48.31084649,143.76,143.65,23.54950508]
[1642413434238,0.25,143.75,143.65,23.54950508]
[1642413434640,0.25,143.75,143.66,69.59]
[1642413434938,0.25,143.75,143.66,69.84]
[1642413435138,0.25,143.75,143.67,24.4779]
[1642413435741,0.25,143.75,143.68,36.19091887]
[1642413436040,0.25,143.75,143.69,23.6421]
[1642413436244,0.25,143.76,143.69,23.6421]
[1642413437142,0.25,143.76,143.69,23.79256318]
[1642413438343,10.6892,143.76,143.69,23.79256318]
[1642413439447,34.1302,143.76,143.69,23.79256318]
[1642413439647,35.86924425,143.76,143.69,23.79256318]
[1642413441746,35.86924425,143.76,143.69,0.15046318]
[1642413442146,35.86924425,143.76,143.68,44.10177343]
[1642413442844,34.1302,143.76,143.68,44.10177343]
[1642413443047,34.1302,143.76,143.68,0.15044224]
[1642413443346,45.98924425,143.76,143.68,0.15044224]
[1642413444550,10.442,143.73,143.68,0.15044224]
[1642413444746,39.03632005,143.72,143.68,0.15044224]
[1642413445149,24.7243,143.71,143.68,0.15044224]
[1642413445348,1.28219997,143.7,143.68,0.15044224]
[1642413445549,10.4444,143.69,143.68,0.15044224]
[1642413445747,10.6944,143.69,143.68,0.15044224]
[1642413446149,18.40344425,143.69,143.68,0.15044224]
[1642413446548,87.99344425,143.69,143.68,0.15044224]
[1642413446947,18.40344425,143.69,143.68,0.15044224]
[1642413447349,12.43344425,143.69,143.61,2.08169713]
[1642413447549,10.4464,143.67,143.61,2.08169713]
[1642413447750,35.27523486,143.66,143.61,2.08169713]
[1642413448247,35.27523486,143.66,143.61,0.15046318]
[1642413449151,0.25,143.66,143.61,0.15046318]
[1642413452155,0.25,143.66,143.6,37.31041651]
[1642413452358,0.25,143.67,143.6,37.31041651]
[1642413454959,24.6471,143.68,143.6,37.31041651]
[1642413455157,36.79720224,143.73,143.6,37.31041651]
[1642413455357,22.6486,143.72,143.61,23.4516]
[1642413456057,59.17961105,143.72,143.61,23.4516]
[1642413456358,0.25,143.7,143.61,23.4516]
[1642413457364,0.25,143.7,143.63,0.12552604]
[1642413457563,22.8551,143.7,143.63,0.12552604]
[1642413457960,0.25,143.7,143.63,0.12552604]
[1642413460174,0.25,143.72,143.63,0.12552604]
[1642413462167,0.25,143.72,143.61,95.09833903]
[1642413464164,0.25,143.72,143.61,105.53973903]
[1642413464366,0.25,143.72,143.62,0.25]
[1642413464766,0.25,143.75,143.62,0.25]
[1642413464967,0.25,143.75,143.63,11.42566584]
[1642413465168,0.25,143.75,143.64,92.9422]
[1642413465373,40.83809616,143.77,143.66,69.59]
[1642413465769,40.58809616,143.77,143.66,69.59]
[1642413465969,40.58809616,143.77,143.67,23.0494]
[1642413467270,0.25,143.76,143.68,0.12547365]
[1642413472208,0.25,143.76,143.67,23.17485271]
[1642413477211,0.25,143.76,143.69,0.1846685]
[1642413482320,0.25,143.76,143.67,23.23403932]
[1642413483023,1.97990224,143.78,143.68,69.59]
[1642413483225,1.97990224,143.78,143.7,69.59]
[1642413483423,1.97990224,143.78,143.71,23.5671]
[1642413483825,23.5065,143.79,143.71,23.5671]
[1642413484026,13.62267454,143.8,143.71,23.5671]
[1642413484225,13.62267454,143.8,143.72,38.36452658]
[1642413485026,37.49067454,143.8,143.72,38.36452658]
[1642413485627,37.49067454,143.8,143.67,22.67277327]
[1642413485830,1.98904425,143.79,143.68,24.0897]
[1642413486631,12.42704425,143.79,143.68,61.987975]
[1642413487132,23.6162,143.78,143.68,61.987975]
[1642413487334,0.25,143.77,143.74,0.18459556]
[1642413487950,1.03219997,143.76,143.74,0.18459556]
[1642413488352,0.25,143.75,143.74,0.18459556]
[1642413489949,0.25,143.75,143.74,5.21679553]
[1642413492252,1.97990224,143.77,143.74,5.21679553]
[1642413492452,2.22990224,143.77,143.74,5.21679553]
[1642413493253,0.25,143.77,143.74,5.21679553]
[1642413493654,0.25,143.78,143.74,5.21679553]
[1642413497364,0.25,143.78,143.76,0.1845664]
[1642413497963,1.03219997,143.77,143.76,0.1845664]
[1642413498364,37.28219997,143.77,143.76,0.1845664]
[1642413498764,71.98921679,143.77,143.76,0.1845664]
[1642413499367,35.98921679,143.77,143.76,0.1845664]
[1642413501667,1.28219997,143.77,143.76,0.1845664]
[1642413502265,1.28219997,143.77,143.7,24.2615]
[1642413502464,0.25,143.76,143.7,24.2615]
[1642413503369,1.97990224,143.78,143.7,34.6965]
[1642413503567,1.97990224,143.78,143.71,0.25]
[1642413504567,52.02746483,143.82,143.71,0.25]
[1642413504568,1.97990224,143.79,143.71,0.25]
[1642413504774,0.25,143.78,143.71,69.84]
[1642413505571,0.25,143.78,143.71,80.274]
[1642413505970,0.25,143.8,143.71,80.274]
[1642413507201,0.25,143.8,143.73,0.18461015]
[1642413512105,0.25,143.8,143.72,24.64358098]
[1642413515113,1.97990224,143.81,143.72,24.64358098]
[1642413515611,1.97990224,143.81,143.72,35.07708098]
[1642413515810,1.97990224,143.81,143.72,104.66708098]
[1642413516012,10.12,143.82,143.72,104.66708098]
[1642413516716,0.25,143.81,143.72,104.66708098]
[1642413517322,0.25,143.81,143.74,0.18459556]
[1642413518018,0.25,143.81,143.74,42.07440069]
[1642413518220,0.25,143.81,143.74,65.55570069]
[1642413518821,0.25,143.82,143.75,69.59]
[1642413519022,3.55776849,143.83,143.74,145.57780069]
[1642413519623,3.55776849,143.83,143.75,0.25]